Cogmind - Beta 13 @@@ ROGUE MODE // 2024.03.29 @ 15:57:54 Player: gabr Result: Destroyed by G-47 Trooper with Particle Gun Performance ------------- Evolutions (3) 1500 Regions Visited (4) 800 Robots Destroyed (65) 325 Value Destroyed (1599) 1599 Prototype IDs (7) 140 Alien Tech Used (0) 0 Bonus (0) 0 TOTAL SCORE: 4364 Bonus ------- None Cogmind --------- Core Integrity 0/700 Matter 142/300 Energy 51/100 System Corruption 0% Temperature Cool (18) Movement Core (400) Ox7 Location -7/Factory Parts ------- > --- POWER (1) -------- (None) > --- PROPULSION (5) --- (None) > --- UTILITY (3) ------ Improved Targeting Computer Improved Field Recycling Unit > --- WEAPON (4) ------- Precision Assault Rifle Heavy Mace Heavy Mace > --- INVENTORY (5) ---- Cooled Ion Engine Matter Filter Peak State ------------ > --- POWER ------------ Heavy Ion Engine > --- PROPULSION ------- Improved Titanium Leg Cesium-ion Thruster Cesium-ion Thruster Cesium-ion Thruster Improved VTOL Module > --- UTILITY ---------- Reaction Control System Improved Light Armor Plating Improved Field Recycling Unit > --- WEAPON ----------- Light Assault Rifle Light Cannon Light Cannon > --- INVENTORY -------- Improved Ion Engine Cooled Ion Engine Heavy Particle Gun Particle Cannon Mining Laser [Rating: 34] Favorites ----------- Power Heavy Ion Engine Engine Heavy Ion Engine Propulsion Aluminum Leg Treads Light Treads Leg Aluminum Leg Wheel Wheel Hover Unit Hover Unit Flight Unit Cesium-ion Thruster Utility Small Storage Unit Device Improved Field Recycling Unit Storage Small Storage Unit Processor Improved Targeting Computer Protection Improved Light Armor Plating Weapon Light Cannon Energy Gun Shock Rifle Energy Cannon Particle Cannon Ballistic Gun Light Assault Rifle Ballistic Cannon Light Cannon Special Weapon Mining Laser Impact Weapon Heavy Mace Build | -11 -10 -9 -8 -7 ------- Run | Yrd Mat Mat Mat Fac Slots Evolved 6 | . . 2 2 2 Power . | . . . . . Propulsion 3 | . . 2 . 1 Utility 1 | . . . . 1 Weapon 2 | . . . 2 . Parts Attached 86 | 7 29 22 18 10 Power 12 | 1 5 5 . 1 Engine 12 | 1 5 5 . 1 Core . | . . . . . Reactor . | . . . . . Propulsion 22 | 2 9 5 5 1 Treads 2 | . 2 . . . Leg 12 | 2 3 5 1 1 Wheel 2 | . 2 . . . Hover 2 | . 2 . . . Flight 4 | . . . 4 . Utility 12 | 1 4 2 2 3 Device 3 | . . . 1 2 Storage 5 | 1 3 1 . . Processor 3 | . 1 1 . 1 Hackware . | . . . . . Protection 1 | . . . 1 . Artifact . | . . . . . Weapon 40 | 3 11 10 11 5 Energy Gun 10 | 2 2 5 1 . Energy Cannon 2 | . . 1 . 1 Ballistic Gun 12 | 1 3 3 4 1 Ballistic Cannon 13 | . 6 1 6 . Launcher . | . . . . . Special Weapon 1 | . . . . 1 Impact Weapon 2 | . . . . 2 Slashing Weapon . | . . . . . Piercing Weapon . | . . . . . Special Melee Weapon . | . . . . . Unidentified Prototypes 7 | . . 3 3 1 Parts Lost 23 | . 2 2 6 13 Power 3 | . 1 . . 2 Propulsion 11 | . . 2 4 5 Utility 1 | . . . . 1 Weapon 8 | . 1 . 2 5 Highest Loss Streak 13 | . 1 2 3 13 To Critical Strikes . | . . . . . Average Slot Usage (%) 87 | . 85 92 90 79 Engine 11 | . 13 11 9 6 Treads 5 | . 13 . . . Leg 19 | . 7 38 18 5 Flight 4 | . . . 9 24 Device 1 | . . . . 11 Storage 10 | . 14 11 8 . Processor 7 | . 5 9 8 5 Energy Gun 5 | . 3 6 8 . Ballistic Gun 10 | . 10 12 9 5 Ballistic Cannon 9 | . 12 1 16 11 Naked Turns . | . . . . . Heaviest Build 55 | 13 55 19 28 31 Greatest Support 40 | 20 40 40 40 20 Greatest Overweight (x) 8 | 3 3 . 5 8 Average Overweight (x) . | . . . . 1 Largest Inventory Capacity 20 | 8 20 8 8 5 Average Capacity 7 | 7 8 8 7 5 Most Carried 10 | 6 10 8 8 5 Average Carried 6 | 3 6 7 6 4 Final Capacity 8 | 8 8 8 5 5 Final Carried 8 | 6 8 8 5 2 Class Distribution -------------------- 66% | Mutant 20% | Gunner 9% | Scavenger-Mutant 3% | Tank Dominant Class ---------------- Mutant | -10/Materials Mutant | -9/Materials Gunner | -8/Materials Gunner | -7/Factory Resources | -11 -10 -9 -8 -7 ----------- Run | Yrd Mat Mat Mat Fac Matter Collected 1809 | 233 550 637 386 3 Remotely . | . . . . . Salvage Created 2075 | . 628 855 460 132 Parts 114 | . 35 49 24 6 Haulers Intercepted 9 | . 2 5 2 . Recyclers Shooed 2 | . . . 2 . Parts Field Recycled . | . . . . . Retrieved Matter . | . . . . . Parts Self-Destructed . | . . . . . Prevented . | . . . . . Kills | -11 -10 -9 -8 -7 ------- Run | Yrd Mat Mat Mat Fac Combat Hostiles Destroyed 45 | . 12 20 9 4 Guns 25 | . 3 19 2 1 Cannons 17 | . 9 1 5 2 AOE 2 | . . . 2 . Classes Destroyed 10 | . 6 3 1 . Worker 1 | . . . 1 . Builder 1 | . . 1 . . Hauler 9 | . 2 5 2 . Recycler 5 | . 3 . 2 . Operator 1 | . 1 . . . Watcher 3 | . 3 . . . Swarmer 12 | . 2 7 3 . Grunt 28 | . 10 9 5 4 Duelist 1 | . . 1 . . Sentry 4 | . . 3 1 . Best Kill Streak 5 | . 3 5 5 1 Combat Bots Only 5 | . 3 5 5 1 Max Kills in Single Turn 2 | . 1 1 2 1 Gunslinging . | . . . . . Exploded 2 | . . . 2 . Melee . | . . . . . Uniques/NPCs Destroyed . | . . . . . Combat | -11 -10 -9 -8 -7 -------- Run | Yrd Mat Mat Mat Fac Hostile Shots Fired 342 | . 64 90 41 147 Missed 84 | . 19 23 8 34 Damage Taken 3704 | . 510 797 588 1809 Core 942 | . 87 109 31 715 Absorbed by Shields . | . . . . . Core Remaining (%) 82 | 100 65 72 94 . Volleys Fired 187 | . 73 75 25 14 Largest 4 | . 2 2 4 3 Hottest 203 | . 80 112 172 203 Shots Fired 406 | . 142 150 90 24 Gun 266 | . 74 139 48 5 Cannon 137 | . 68 11 42 16 Launcher . | . . . . . Special 3 | . . . . 3 Kinetic 292 | . 124 92 64 12 Thermal 82 | . 1 56 13 12 Explosive . | . . . . . Electromagnetic 32 | . 17 2 13 . Robot Hit Streak 15 | . 11 15 14 5 Robot Miss Streak 7 | . 4 6 7 2 Penetration Max . | . . . . . Secondary Targets 1 | . . 1 . . Max Gunslinging Chain 1 | . . 1 . . Shots Hit Robots 274 | . 97 112 47 18 Core Hits 151 | . 35 68 40 8 Critical Kills . | . . . . . Critical Parts Destroyed 2 | . 1 1 . . Critical Strikes 4 | . 3 1 . . Destroy 2 | . 1 1 . . Blast 2 | . 2 . . . Melee Attacks 4 | . . . . 4 Impact 4 | . . . . 4 Slashing . | . . . . . Piercing . | . . . . . Sneak Attacks . | . . . . . Combat Hostiles . | . . . . . Follow-up Attacks . | . . . . . Damage Inflicted 4500 | . 1356 1587 1160 397 Guns 2342 | . 467 1413 384 78 Cannons 1870 | . 889 174 616 191 Explosions 160 | . . . 160 . Melee 56 | . . . . 56 Ramming . | . . . . . Kinetic 2845 | . 1165 801 735 144 Thermal 1244 | . . 772 275 197 Explosive . | . . . . . Electromagnetic 355 | . 191 14 150 . Impact 56 | . . . . 56 Slashing . | . . . . . Piercing . | . . . . . Highest Corruption . | . . . . . Average Corruption . | . . . . . Corruption Purged . | . . . . . Corruption Blocked . | . . . . . Overload Shots . | . . . . . Overflow Damage 32 | . 1 . 15 16 Projectiles 1 | . 1 . . . Explosions 15 | . . . 15 . Melee 16 | . . . . 16 Knockbacks 26 | . 10 . 15 1 Impact . | . . . . . Kinetic 24 | . 9 . 14 1 Secondary 2 | . 1 . 1 . Self-Inflicted Damage 71 | . . . 71 . Shots 2 | . . . 2 . Rammed . | . . . . . Targets Rammed . | . . . . . Kicked . | . . . . . Crushed . | . . . . . Highest Temperature 472 | . 171 238 466 472 Average Temperature 98 | . 27 46 193 193 Received Heat Transfer 1926 | . 270 243 252 1161 Effects 12 | . . . 7 5 Shutdowns 4 | . . . 2 2 Energy Bleed 1 | . . . . 1 Interference 1 | . . . . 1 Matter Decay 1 | . . . 1 . Short Circuit 1 | . . . 1 . Damage (minor) 4 | . . . 3 1 Siege Activations . | . . . . . Robots Corrupted . | . . . . . Combat Hostiles . | . . . . . Parts Fried . | . . . . . Impact Corruptions 1 | . . . . 1 Robots Melted . | . . . . . Combat Hostiles . | . . . . . Parts Melted 1 | . . 1 . . Heat Transferred 1950 | . . 1206 372 372 Parts Sabotaged . | . . . . . Parts Stolen . | . . . . . Parts Stripped . | . . . . . Power Chain Reactions 2 | . . . 2 . Alert | -11 -10 -9 -8 -7 ------- Run | Yrd Mat Mat Mat Fac Peak Influence 378 | . 169 378 356 77 Initial 138 | . . 24 138 77 Average 148 | . 73 237 244 68 Maximum Alert Level 1 | . . 1 1 . Low Security (%) 65 | 100 100 24 27 100 Level 1 34 | . . 75 72 . Level 2 . | . . . . . Level 3 . | . . . . . Level 4 . | . . . . . Level 5 . | . . . . . High Security . | . . . . . Max Security . | . . . . . Squads Dispatched 4 | . 2 1 . 1 Investigation 2 | . 2 . . . Extermination . | . . . . . Reinforcement 2 | . . 1 . 1 Assault . | . . . . . Garrison . | . . . . . Intercept . | . . . . . Searches Triggered . | . . . . . Construction Impeded . | . . . . . Haulers Reinforced . | . . . . . Active Scanning Responses . | . . . . . Cargo Convoy Interrupts . | . . . . . Stealth | -11 -10 -9 -8 -7 --------- Run | Yrd Mat Mat Mat Fac Distress Signals 1 | . 1 . . . Communications Jammed . | . . . . . Distress Signals . | . . . . . Times Spotted 77 | . 21 33 15 8 Peak Tracking Total 7 | . 3 5 5 7 Tactical Retreats 2 | . . 2 . . Traps | -11 -10 -9 -8 -7 ------- Run | Yrd Mat Mat Mat Fac Traps Triggered 6 | . 5 . 1 . Indirectly . | . . . . . Trap Hack Attempts . | . . . . . Triggered . | . . . . . Disarmed . | . . . . . Reprogrammed . | . . . . . Reused . | . . . . . Traps Extracted . | . . . . . Installed . | . . . . . Triggered 1 | . 1 . . . Machines | -11 -10 -9 -8 -7 ---------- Run | Yrd Mat Mat Mat Fac Machines Disabled 2 | . 1 1 . . Max in Single Turn 1 | . 1 1 . . Machines Repaired . | . . . . . Machines Dismantled . | . . . . . Machines Sabotaged . | . . . . . Overloaded Fab Kills . | . . . . . Hacking | -11 -10 -9 -8 -7 --------- Run | Yrd Mat Mat Mat Fac Machines Accessed 2 | . 1 . 1 . Terminals 1 | . . . 1 . Fabricators . | . . . . . Repair Stations . | . . . . . Recycling Units 1 | . 1 . . . Scanalyzers . | . . . . . Garrison Access . | . . . . . Total Hacks 4 | . 3 . 1 . Successful 2 | . 1 . 1 . Failed 2 | . 2 . . . Catastrophic . | . . . . . Database Lockouts . | . . . . . Manual . | . . . . . Terminals 1 | . . . 1 . Fabricators . | . . . . . Repair Stations . | . . . . . Recycling Units 3 | . 3 . . . Scanalyzers . | . . . . . Garrison Access . | . . . . . Terminal Hacks 1 | . . . 1 . Hauler Manifests 1 | . . . 1 . Fabricator Hacks . | . . . . . Repair Station Hacks . | . . . . . Recycling Unit Hacks 1 | . 1 . . . Retrieve Components 1 | . 1 . . . Scanalyzer . | . . . . . Garrison Access Hacks . | . . . . . Unauthorized Hacks . | . . . . . Terminals . | . . . . . Fabricators . | . . . . . Repair Stations . | . . . . . Recycling Units . | . . . . . Scanalyzers . | . . . . . Garrison Access . | . . . . . Data Cores Recovered 1 | . 1 . . . Used . | . . . . . Hacking Detections 1 | . 1 . . . Full Trace Events 1 | . 1 . . . Feedback Events . | . . . . . Feedback Blocked . | . . . . . Robot Schematics Acquired . | . . . . . Robots Built . | . . . . . Authchips . | . . . . . Time . | . . . . . Total Robot Build Rating . | . . . . . Part Schematics Acquired . | . . . . . Parts Built . | . . . . . Authchips . | . . . . . Time . | . . . . . Total Part Build Rating . | . . . . . Parts Repaired . | . . . . . Time . | . . . . . Parts Recycled . | . . . . . Recycled Matter . | . . . . . Retrieved Matter . | . . . . . Retrieved Components 9 | . 9 . . . Parts Scanalyzed . | . . . . . Part Schematics Acquired . | . . . . . Parts Damaged . | . . . . . Bothacking | -11 -10 -9 -8 -7 ------------ Run | Yrd Mat Mat Mat Fac Used RIF Installer . | . . . . . Robots Hacked . | . . . . . Non-combat . | . . . . . Combat . | . . . . . Robot Hacks Applied . | . . . . . Relay Couplers Released . | . . . . . Fabnet Peak Effective % . | . . . . . Robots Rewired . | . . . . . Allies Hacked . | . . . . . Hacks Repelled . | . . . . . Allies | -11 -10 -9 -8 -7 -------- Run | Yrd Mat Mat Mat Fac Total Allies . | . . . . . Largest Group . | . . . . . Highest-Rated Group . | . . . . . Highest-Rated Ally . | . . . . . Total Orders . | . . . . . Ally Attacks . | . . . . . Total Damage . | . . . . . Kills . | . . . . . Allies Corrupted . | . . . . . Allies Melted . | . . . . . Intel | -11 -10 -9 -8 -7 ------- Run | Yrd Mat Mat Mat Fac Robot Analysis Total . | . . . . . Derelict Logs Recovered . | . . . . . Drone Launches . | . . . . . Drone Recoveries . | . . . . . Exploration | -11 -10 -9 -8 -7 ------------- Run | Yrd Mat Mat Mat Fac Turns Passed 3106 | 76 1222 1002 444 362 Spaces Moved 1670 | 47 657 570 237 159 Core 48 | 16 23 . . 9 Treads 270 | . 270 . . . Legs 1091 | 31 177 570 178 135 Wheels 62 | . 62 . . . Hover 125 | . 125 . . . Flight 74 | . . . 59 15 Fastest Speed 26 | 50 80 120 26 26 Average Speed 136 | 127 138 120 139 183 Slowest Speed 450 | 200 260 120 445 450 Overloaded Moves . | . . . . . Propulsion Burnouts . | . . . . . Robots Hopped . | . . . . . Cave-ins Triggered . | . . . . . Exploration Rate (%) 30 | 5 70 48 27 4 Regions Visited 4 Branch Regions . Pre-discovered Areas . | . . . . . Known Exits Taken . | . . . . . Unknown Exits Taken 4 | 1 1 1 1 . Scrap Searched . | . . . . . Spaces Dug . | . . . . . Terrain Destroyed 7 | . . . 7 . Melee . | . . . . . Projectile . | . . . . . AOE 7 | . . . 7 . Terrain Rammed . | . . . . . Walls Destroyed . | . . . . . Machines Disabled . | . . . . . Actions | -11 -10 -9 -8 -7 --------- Run | Yrd Mat Mat Mat Fac Total 2147 | 59 842 758 295 193 Wait 126 | . 51 68 5 2 Move 1666 | 46 656 569 236 159 Hop . | . . . . . Pick Up 23 | 6 12 4 . 1 Fast Attach 53 | 6 14 16 10 7 Attach 18 | . 7 1 7 3 Detach 10 | . 3 1 6 . Swap 15 | 1 8 5 1 . Drop 45 | . 18 19 5 3 Fire 187 | . 73 75 25 14 Melee 4 | . . . . 4 Ram . | . . . . . Kick . | . . . . . Crush . | . . . . . Escape Stasis . | . . . . . Rewire . | . . . . . Trap . | . . . . . Miscellaneous . | . . . . . Route ------- -11/Scrapyard -10/Materials (discovered 3 exits: *Mat x2 / [*Min]) -9/Materials (discovered 2 exits: *Mat / [*Min]) -8/Materials -7/Factory History --------- Turn | Location | Event 27 | -11/Scrapyard | Discovered new exit (range 14) 77 | -11/Scrapyard | Entered Materials 304 | -10/Materials | Build established: Mutant 453 | -10/Materials | Discovered new exit (range 15) 704 | -10/Materials | Discovered new exit (range 16) 1257 | -10/Materials | Discovered new exit (range 7) 1299 | -10/Materials | Entered another Materials area 1299 | -9/Materials | Evolved 2 slots: Propulsion x2 1616 | -9/Materials | Discovered new exit (range 15) 2189 | -9/Materials | Discovered new exit (range 14) 2301 | -9/Materials | Entered another Materials area 2301 | -8/Materials | Evolved 2 slots: Weapon x2 2583 | -8/Materials | Lost 3 parts (1n2w) 2600 | -8/Materials | Build established: Gunner 2740 | -8/Materials | Discovered new exit (range 15) 2745 | -8/Materials | Entered Factory 2745 | -7/Factory | Evolved 2 slots: Propulsion x1, Utility x1 3077 | -7/Factory | Core integrity fell below 50% 3095 | -7/Factory | Core integrity fell below 20% 3107 | -7/Factory | Destroyed by G-47 Trooper with Particle Gun Last Messages --------------- 03059_ Cesium-ion Thruster destroyed. 03064_ K-01 Serf collects debris. 03067_ Hvy. Ion Engine destroyed. 03067_ K-01 Serf collects debris. 03069_ Particle Cannon destroyed. 03070_ Imp. VTOL Module destroyed. 03070_ K-01 Serf collects debris. 03079_ Critical hit (Burn: +37). 03083_ K-01 Serf collects debris. 03084_ Critical hit (Burn: +37). 03084_ Acquired Hvy. Mace. 03085_ Critical hit (Burn: +37). 03088_ Imp. Ion Engine destroyed. 03090_ Acquired Prototype Ballistic Gun. 03090_ Identified Prc. Assault Rifle. 03095_ Critical hit (Burn: +37). 03096_ G-47 Trooper destroyed. 03098_ K-01 Serf collects debris. 03105_ Critical hit (Burn: +37). 03106_ K-01 Serf collects debris. Map ----- +----------------------------------------------------+ | | | | | | | | | | | | | | | | | | | | | | | | | | | | | | | | | | | | | | | | | | | ????############################################## | | ????# # ## """"""" | | ????# /g ! """ ## """"""" | | ????# % #g %* """ ## """"""" | | ????# # @ """ ## """"""" | | ????# %g[/[ ## ! | | ????# =# k ## ! | | ????# = # ## """ | | ????#########+####%#########;###### Y" | | ???????????# % + """ | | ???????????# ##### | | ???????????# #???########+####### | | ???????????########+####### #????????# | | ???????????# """"" ## ########## | | ???????????# ""T"" ## ## # | | ???????????# """ ## ## # | | ???????????# """ ## ## + | | ???????????# [ """ ## ## # | | ???????????# ## ## "" # | | ???????????#/###/######### # "" # ##+## | | ??????????# ?? ????????# # """ # # | | ??????????# ???""???????? # """ # # | | ??????????????"""????????# + """ # # | | ?????????????????????????# # # # | | ?????????????????????????# # # #! | | ?????????????????????????# ######### ##### | | ?????????????????????????# #?? | | ?????????????????????????# #?? | | ?????????????????????????# #?? | +----------------------------------------------------+ Best States ------------- Heat Dissipation 34 Energy Generation 14 Energy Capacity 280 Matter Stores 300 Matter Capacity 300 Sight Range 16 Terrain Scan Density 10 Armor Coverage 150 Evasion (%) 72 Targeting Accuracy 6 Recoil Reduction 2 Item Schematics ----------------- None Robot Schematics ------------------ None Fabricated ------------ Nothing Alien Tech Used ----------------- None Achievements -------------- None Challenges ------------ None Game ------ Seed ChipBombardmentWings Manual? 0 Play Time 00:26:10 Cumulative 21.0 hours Start 2024.03.29 @ 15:34:14 End 2024.03.29 @ 15:57:54 Sessions 1 Manual Loads 0 Difficulty Rogue Special Mode None Game No. 48 Rogue 48 Adventurer 0 Explorer 0 Win Type - Total 0 Types 0/0/0/0/0/0/0/0/0 Lore% 18 Gallery% 23 Achievement% 20 Wizard Run 0 Options --------- Layout 0 ASCII 0 Keyboard 1 Movement Numpad Keybinds 0 Fullscreen 1 Font 18/X11 Map View 76x50 Zoom Use 0% Tactical HUD 1 Map Filters NONE Filters NONE Steam 1 RUN: 44111819-5e09-4ff3-9a6b-1d29cdcb62b1